[Event "GrandPrix_29.05"]
[Site "Chess.com"]
[Date "2020.05.29"]
[Round "5"]
[White "Gabrielian_Artur"]
[Black "mishikomchedlishvili"]
[Result "0-1"]
[WhiteElo "2657"]
[BlackElo "2469"]
[TimeControl "600+2"]
[EndTime "11:27:29 PDT"]
[Termination "mishikomchedlishvili won by checkmate"]

1. e4 {[%clk 0:10:01.9]} 1... c5 {[%clk 0:09:55.7]} 2. Nc3 {[%clk 0:10:02.3]}
2... e6 {[%clk 0:09:55.6]} 3. g3 {[%clk 0:10:01.9]} 3... Nc6 {[%clk 0:09:53.3]}
4. Bg2 {[%clk 0:10:02.4]} 4... g6 {[%clk 0:09:52.4]} 5. d3 {[%clk 0:09:18.3]}
5... Bg7 {[%clk 0:09:52.7]} 6. Be3 {[%clk 0:09:18.9]} 6... d6 {[%clk 0:09:46.6]}
7. Qd2 {[%clk 0:09:19.7]} 7... Nd4 {[%clk 0:09:45.2]} 8. Nge2 {[%clk 0:09:10.3]}
8... Qa5 {[%clk 0:09:40.9]} 9. O-O {[%clk 0:08:46.6]} 9... Ne7 {[%clk
0:09:36.8]} 10. Nc1 {[%clk 0:07:19.4]} 10... O-O {[%clk 0:09:29.6]} 11. Nd5
{[%clk 0:06:52.3]} 11... Qd8 {[%clk 0:09:23.1]} 12. Nxe7+ {[%clk 0:06:52.4]}
12... Qxe7 {[%clk 0:09:24.1]} 13. c3 {[%clk 0:06:52.5]} 13... Nc6 {[%clk
0:09:24.3]} 14. d4 {[%clk 0:06:47.7]} 14... cxd4 {[%clk 0:08:29]} 15. cxd4
{[%clk 0:06:47]} 15... b6 {[%clk 0:08:28.9]} 16. Ne2 {[%clk 0:06:32.6]} 16...
Bb7 {[%clk 0:08:24.6]} 17. Rac1 {[%clk 0:06:25]} 17... Rac8 {[%clk 0:08:24.2]}
18. h4 {[%clk 0:06:21.1]} 18... Ba6 {[%clk 0:07:58.3]} 19. Rfe1 {[%clk
0:06:14.7]} 19... Bxe2 {[%clk 0:07:48.8]} 20. Qxe2 {[%clk 0:05:29.8]} 20... Nxd4
{[%clk 0:07:46.4]} 21. Qd3 {[%clk 0:05:25.6]} 21... e5 {[%clk 0:07:40.8]} 22.
Bxd4 {[%clk 0:05:16.1]} 22... exd4 {[%clk 0:07:41.2]} 23. Bh3 {[%clk 0:05:17]}
23... Rc5 {[%clk 0:07:38.9]} 24. Rc2 {[%clk 0:04:46.5]} 24... h5 {[%clk
0:07:29.1]} 25. b4 {[%clk 0:03:40.9]} 25... Rc3 {[%clk 0:07:27.2]} 26. Rxc3
{[%clk 0:03:41.7]} 26... dxc3 {[%clk 0:07:28.3]} 27. e5 {[%clk 0:03:42.3]} 27...
dxe5 {[%clk 0:06:14.3]} 28. Qxc3 {[%clk 0:03:43.2]} 28... Rd8 {[%clk 0:06:14.9]}
29. Bg2 {[%clk 0:03:18.6]} 29... f5 {[%clk 0:06:13.2]} 30. Qb3+ {[%clk
0:03:15.9]} 30... Kh7 {[%clk 0:06:12.3]} 31. b5 {[%clk 0:03:15.5]} 31... e4
{[%clk 0:06:10.6]} 32. Rd1 {[%clk 0:03:06.7]} 32... Bd4 {[%clk 0:05:50.4]} 33.
Kf1 {[%clk 0:01:43.3]} 33... Kg7 {[%clk 0:05:41.2]} 34. Qc4 {[%clk 0:01:36.5]}
34... Bc5 {[%clk 0:05:24.3]} 35. Rxd8 {[%clk 0:01:36.5]} 35... Qxd8 {[%clk
0:05:25.3]} 36. Ke2 {[%clk 0:01:37.7]} 36... Qf6 {[%clk 0:05:20.4]} 37. Qc2
{[%clk 0:01:18.5]} 37... Qd4 {[%clk 0:05:12.9]} 38. Ke1 {[%clk 0:01:19.5]} 38...
Qa1+ {[%clk 0:05:07.7]} 39. Ke2 {[%clk 0:01:12.9]} 39... Qg1 {[%clk 0:05:02.2]}
40. Qc3+ {[%clk 0:01:08.1]} 40... Kh7 {[%clk 0:05:00.1]} 41. Qf6 {[%clk
0:00:56.6]} 41... Qxf2+ {[%clk 0:04:58.7]} 42. Kd1 {[%clk 0:00:57.8]} 42... Qg1+
{[%clk 0:04:29.2]} 43. Kc2 {[%clk 0:00:58.6]} 43... Qxg2+ {[%clk 0:04:29.2]} 44.
Kb3 {[%clk 0:01:00]} 44... Qf3+ {[%clk 0:04:28.7]} 45. Ka4 {[%clk 0:00:58.7]}
45... Qa3# {[%clk 0:04:28.9]} 0-1

[Event "GrandPrix_29.05"]
[Site "Chess.com"]
[Date "2020.05.29"]
[Round "5"]
[White "SantoBlue"]
[Black "Kobalia"]
[Result "1-0"]
[WhiteElo "2439"]
[BlackElo "2199"]
[TimeControl "600+2"]
[EndTime "11:27:41 PDT"]
[Termination "SantoBlue won on time"]

1. e4 {[%clk 0:09:53.3]} 1... c6 {[%clk 0:09:59.4]} 2. Nf3 {[%clk 0:09:51.7]}
2... d5 {[%clk 0:09:58.7]} 3. Nc3 {[%clk 0:09:45]} 3... Bg4 {[%clk 0:09:58.7]}
4. h3 {[%clk 0:09:45.5]} 4... Bxf3 {[%clk 0:09:59.5]} 5. Qxf3 {[%clk 0:09:47.4]}
5... e6 {[%clk 0:09:59.6]} 6. d3 {[%clk 0:09:47.7]} 6... Nf6 {[%clk 0:09:48.8]}
7. Qg3 {[%clk 0:09:44]} 7... Nh5 {[%clk 0:09:40.6]} 8. Qf3 {[%clk 0:09:35.7]}
8... Nf6 {[%clk 0:09:40.5]} 9. g3 {[%clk 0:09:28]} 9... Bb4 {[%clk 0:09:28.4]}
10. Bd2 {[%clk 0:09:23.7]} 10... d4 {[%clk 0:09:20]} 11. Nb1 {[%clk 0:09:24.7]}
11... Qb6 {[%clk 0:09:14.7]} 12. Bg2 {[%clk 0:09:04.5]} 12... Bxd2+ {[%clk
0:07:45.7]} 13. Nxd2 {[%clk 0:09:05.1]} 13... Qxb2 {[%clk 0:07:37.8]} 14. O-O
{[%clk 0:09:05.8]} 14... Qb4 {[%clk 0:07:30.6]} 15. Nc4 {[%clk 0:09:00.3]} 15...
O-O {[%clk 0:07:25.7]} 16. Rab1 {[%clk 0:08:58.9]} 16... Qe7 {[%clk 0:07:24.6]}
17. e5 {[%clk 0:08:59.7]} 17... Nd5 {[%clk 0:07:21.4]} 18. Qg4 {[%clk
0:08:57.7]} 18... b5 {[%clk 0:06:15.5]} 19. Nd6 {[%clk 0:08:52.6]} 19... Nd7
{[%clk 0:06:14.9]} 20. Qxd4 {[%clk 0:08:23.6]} 20... c5 {[%clk 0:06:00]} 21. Qb2
{[%clk 0:08:20.9]} 21... b4 {[%clk 0:05:55.7]} 22. Rbe1 {[%clk 0:08:07.8]} 22...
N7b6 {[%clk 0:05:14.6]} 23. f4 {[%clk 0:07:57.3]} 23... Rad8 {[%clk 0:04:18.3]}
24. f5 {[%clk 0:07:31.9]} 24... exf5 {[%clk 0:04:12.9]} 25. Nxf5 {[%clk
0:07:32.8]} 25... Qe6 {[%clk 0:04:11.6]} 26. h4 {[%clk 0:07:25.3]} 26... Nc3
{[%clk 0:04:07.3]} 27. Qc1 {[%clk 0:07:22.9]} 27... Nbd5 {[%clk 0:03:18.5]} 28.
Bh3 {[%clk 0:06:50.5]} 28... Qg6 {[%clk 0:03:13.9]} 29. Kh2 {[%clk 0:06:31.9]}
29... h6 {[%clk 0:03:05]} 30. Qd2 {[%clk 0:06:12]} 30... Nb5 {[%clk 0:02:59.9]}
31. Qf2 {[%clk 0:06:09.4]} 31... Qb6 {[%clk 0:02:38.8]} 32. Re4 {[%clk
0:05:51.2]} 32... Nd4 {[%clk 0:02:33.7]} 33. Nxd4 {[%clk 0:05:19.2]} 33... cxd4
{[%clk 0:02:33.7]} 34. e6 {[%clk 0:05:05.6]} 34... fxe6 {[%clk 0:02:08.9]} 35.
Bxe6+ {[%clk 0:05:06.4]} 35... Kh7 {[%clk 0:02:08.3]} 36. Qxf8 {[%clk
0:04:57.6]} 36... Rxf8 {[%clk 0:02:07.8]} 37. Rxf8 {[%clk 0:04:59.5]} 37... Ne7
{[%clk 0:01:32.4]} 38. Rf7 {[%clk 0:04:57.3]} 38... Nc6 {[%clk 0:00:40.9]} 39.
Rg4 {[%clk 0:04:41.4]} 1-0

[Event "GrandPrix_29.05"]
[Site "Chess.com"]
[Date "2020.05.29"]
[Round "5"]
[White "grunbergmihai"]
[Black "N4700000"]
[Result "1-0"]
[WhiteElo "2406"]
[BlackElo "2368"]
[TimeControl "600+2"]
[EndTime "11:27:45 PDT"]
[Termination "grunbergmihai won by resignation"]

1. Nf3 {[%clk 0:09:51.3]} 1... Nf6 {[%clk 0:09:59.6]} 2. c4 {[%clk 0:09:51.7]}
2... g6 {[%clk 0:10:00.4]} 3. g3 {[%clk 0:09:52.7]} 3... Bg7 {[%clk 0:10:01.8]}
4. Bg2 {[%clk 0:09:54.4]} 4... O-O {[%clk 0:10:02.9]} 5. O-O {[%clk 0:09:55.5]}
5... d6 {[%clk 0:10:03.2]} 6. d4 {[%clk 0:09:56.3]} 6... c6 {[%clk 0:10:02.6]}
7. Nc3 {[%clk 0:09:57.7]} 7... Qb6 {[%clk 0:10:02.4]} 8. e4 {[%clk 0:09:17.1]}
8... Bg4 {[%clk 0:09:58.5]} 9. Qb3 {[%clk 0:08:16.6]} 9... Nbd7 {[%clk
0:08:58.6]} 10. Be3 {[%clk 0:08:11.4]} 10... c5 {[%clk 0:08:32.9]} 11. d5 {[%clk
0:07:32.4]} 11... Qa6 {[%clk 0:08:04.2]} 12. Nd2 {[%clk 0:07:19.8]} 12... Nb6
{[%clk 0:07:33.1]} 13. a4 {[%clk 0:06:31.5]} 13... Qa5 {[%clk 0:07:04.1]} 14. f4
{[%clk 0:05:37.3]} 14... Qb4 {[%clk 0:06:30.3]} 15. Ra3 {[%clk 0:04:00]} 15...
Bd7 {[%clk 0:06:21.7]} 16. a5 {[%clk 0:03:43.8]} 16... Qxb3 {[%clk 0:05:15.7]}
17. Rxb3 {[%clk 0:03:41.7]} 17... Ng4 {[%clk 0:05:15.6]} 18. Nd1 {[%clk
0:03:33.4]} 18... Nxe3 {[%clk 0:05:03.8]} 19. Nxe3 {[%clk 0:03:32]} 19... Na4
{[%clk 0:05:00.2]} 20. Rxb7 {[%clk 0:03:24]} 20... Rfd8 {[%clk 0:04:43.6]} 21.
e5 {[%clk 0:02:40.9]} 21... dxe5 {[%clk 0:04:32.3]} 22. d6 {[%clk 0:02:37.4]}
22... exd6 {[%clk 0:03:23.5]} 23. Rxd7 {[%clk 0:02:36.3]} 23... Rxd7 {[%clk
0:03:21.2]} 24. Bxa8 {[%clk 0:02:37]} 24... exf4 {[%clk 0:03:20.2]} 25. Nd5
{[%clk 0:02:30.2]} 25... Nxb2 {[%clk 0:03:10.4]} 26. gxf4 {[%clk 0:02:24.1]}
26... Bd4+ {[%clk 0:03:01.7]} 27. Kg2 {[%clk 0:02:23.7]} 27... f5 {[%clk
0:02:24.3]} 28. Re1 {[%clk 0:02:16.3]} 28... Kf7 {[%clk 0:02:22.2]} 29. Bc6
{[%clk 0:02:13.2]} 29... Rd8 {[%clk 0:02:18.7]} 30. Re7+ {[%clk 0:02:13.5]}
30... Kg8 {[%clk 0:02:13.3]} 31. Rxa7 {[%clk 0:02:12.5]} 31... Nd3 {[%clk
0:02:09.6]} 32. a6 {[%clk 0:02:08.2]} 1-0

[Event "GrandPrix_29.05"]
[Site "Chess.com"]
[Date "2020.05.29"]
[Round "5"]
[White "khekhm"]
[Black "Herracek"]
[Result "0-1"]
[WhiteElo "2371"]
[BlackElo "2427"]
[TimeControl "600+2"]
[EndTime "11:27:46 PDT"]
[Termination "Herracek won on time"]

1. e4 {[%clk 0:10:01.9]} 1... c5 {[%clk 0:10:00.9]} 2. Nf3 {[%clk 0:09:58.6]}
2... Nc6 {[%clk 0:10:01.5]} 3. Bb5 {[%clk 0:09:57.8]} 3... g6 {[%clk 0:10:02]}
4. c3 {[%clk 0:09:59]} 4... Nf6 {[%clk 0:10:02.2]} 5. Qe2 {[%clk 0:10:00]} 5...
Bg7 {[%clk 0:09:58.3]} 6. O-O {[%clk 0:10:01]} 6... O-O {[%clk 0:09:58.3]} 7.
Rd1 {[%clk 0:10:01]} 7... Qc7 {[%clk 0:09:52.6]} 8. d4 {[%clk 0:09:41.4]} 8...
d6 {[%clk 0:09:52.9]} 9. h3 {[%clk 0:09:34.7]} 9... a6 {[%clk 0:09:52.8]} 10.
Bxc6 {[%clk 0:08:59]} 10... Qxc6 {[%clk 0:09:51.7]} 11. d5 {[%clk 0:08:59.7]}
11... Qc7 {[%clk 0:09:41.9]} 12. a4 {[%clk 0:08:57.8]} 12... b6 {[%clk
0:09:42.5]} 13. Bf4 {[%clk 0:08:51.5]} 13... Nd7 {[%clk 0:09:42.7]} 14. Nbd2
{[%clk 0:08:50.9]} 14... Rb8 {[%clk 0:09:42.8]} 15. Qe3 {[%clk 0:08:32.8]} 15...
Re8 {[%clk 0:09:36.6]} 16. Re1 {[%clk 0:08:14.6]} 16... b5 {[%clk 0:09:36.7]}
17. axb5 {[%clk 0:08:15.4]} 17... axb5 {[%clk 0:09:37.2]} 18. e5 {[%clk
0:08:16.6]} 18... dxe5 {[%clk 0:09:19.9]} 19. Nxe5 {[%clk 0:08:17.3]} 19... Nxe5
{[%clk 0:09:13.5]} 20. Bxe5 {[%clk 0:08:19.2]} 20... Bxe5 {[%clk 0:09:14.8]} 21.
Qxe5 {[%clk 0:08:20.7]} 21... Qxe5 {[%clk 0:09:16.2]} 22. Rxe5 {[%clk
0:08:22.6]} 22... Kf8 {[%clk 0:09:13.5]} 23. Nb3 {[%clk 0:08:10.7]} 23... f6
{[%clk 0:09:01.9]} 24. Re3 {[%clk 0:08:06.7]} 24... c4 {[%clk 0:08:35.7]} 25.
Nc5 {[%clk 0:06:58.3]} 25... Rd8 {[%clk 0:08:22.1]} 26. Ra7 {[%clk 0:04:16.8]}
26... Rxd5 {[%clk 0:08:18.6]} 27. Rexe7 {[%clk 0:04:17.3]} 27... Rxc5 {[%clk
0:08:18.9]} 28. Rf7+ {[%clk 0:04:14.6]} 28... Ke8 {[%clk 0:07:59.7]} 29. Rxh7
{[%clk 0:03:19]} 29... Rh5 {[%clk 0:07:56.4]} 30. Rhg7 {[%clk 0:03:15]} 30...
Rh8 {[%clk 0:07:37.9]} 31. Rxg6 {[%clk 0:03:05.6]} 31... f5 {[%clk 0:07:38.7]}
32. Rgg7 {[%clk 0:02:44.3]} 32... Kd8 {[%clk 0:07:26.5]} 33. f4 {[%clk
0:02:22.8]} 33... b4 {[%clk 0:07:20.1]} 34. Kf2 {[%clk 0:02:20.5]} 34... bxc3
{[%clk 0:07:19.7]} 35. bxc3 {[%clk 0:02:22.4]} 35... Rb3 {[%clk 0:07:15.5]} 36.
Ke3 {[%clk 0:02:15.8]} 36... Rxc3+ {[%clk 0:07:14.3]} 37. Kd4 {[%clk 0:02:17.2]}
37... Rc1 {[%clk 0:07:09.9]} 38. Rgc7 {[%clk 0:00:35]} 38... Re8 {[%clk
0:07:08.9]} 39. g4 {[%clk 0:00:21.8]} 39... fxg4 {[%clk 0:06:58.2]} 40. hxg4
{[%clk 0:00:22.6]} 40... Rd1+ {[%clk 0:06:46.5]} 41. Kc3 {[%clk 0:00:18.3]}
41... Rc1+ {[%clk 0:06:21.3]} 42. Kd2 {[%clk 0:00:16.1]} 42... Ree1 {[%clk
0:06:18.2]} 43. f5 {[%clk 0:00:10.2]} 43... Red1+ {[%clk 0:06:12.6]} 44. Ke2
{[%clk 0:00:07.4]} 44... Rd7 {[%clk 0:06:12.9]} 45. Rxd7+ {[%clk 0:00:05.5]}
45... Bxd7 {[%clk 0:06:13.6]} 46. Kd2 {[%clk 0:00:02.5]} 46... Rg1 {[%clk
0:06:12.4]} 47. Kc3 {[%clk 0:00:03]} 47... Rxg4 {[%clk 0:06:12.2]} 48. f6 {[%clk
0:00:04.4]} 48... Be6 {[%clk 0:06:07]} 49. Re7 {[%clk 0:00:04.9]} 49... Re4
{[%clk 0:05:56.7]} 50. Kb4 {[%clk 0:00:05.3]} 50... Re3 {[%clk 0:05:47.3]} 0-1

[Event "GrandPrix_29.05"]
[Site "Chess.com"]
[Date "2020.05.29"]
[Round "5"]
[White "Haykos"]
[Black "Novoselski"]
[Result "0-1"]
[WhiteElo "2191"]
[BlackElo "2400"]
[TimeControl "600+2"]
[EndTime "11:28:14 PDT"]
[Termination "Novoselski won by resignation"]

1. e4 {[%clk 0:09:56.7]} 1... e5 {[%clk 0:09:59.6]} 2. Nf3 {[%clk 0:09:50.5]}
2... Nc6 {[%clk 0:09:59.8]} 3. Bc4 {[%clk 0:09:52]} 3... Bc5 {[%clk 0:09:58.8]}
4. d3 {[%clk 0:09:42.3]} 4... Nf6 {[%clk 0:09:53.8]} 5. O-O {[%clk 0:09:43.3]}
5... O-O {[%clk 0:09:53.3]} 6. Re1 {[%clk 0:09:40.5]} 6... d6 {[%clk 0:09:52.1]}
7. c3 {[%clk 0:09:40.5]} 7... Qe7 {[%clk 0:09:47.7]} 8. h3 {[%clk 0:09:39.3]}
8... h6 {[%clk 0:09:46.7]} 9. Nbd2 {[%clk 0:09:30.3]} 9... a6 {[%clk 0:09:40.6]}
10. Bb3 {[%clk 0:09:31.3]} 10... Ba7 {[%clk 0:09:32.3]} 11. Nf1 {[%clk
0:09:32.1]} 11... Be6 {[%clk 0:09:15.4]} 12. Ng3 {[%clk 0:09:25.2]} 12... Nh7
{[%clk 0:09:06.4]} 13. Bc2 {[%clk 0:08:58]} 13... Qf6 {[%clk 0:09:03.2]} 14. Nh5
{[%clk 0:08:30.9]} 14... Qd8 {[%clk 0:08:48.2]} 15. d4 {[%clk 0:08:27.2]} 15...
Bd7 {[%clk 0:08:31.9]} 16. Be3 {[%clk 0:07:32.9]} 16... Re8 {[%clk 0:08:26.5]}
17. Qd2 {[%clk 0:07:32.8]} 17... g5 {[%clk 0:07:58.1]} 18. Ng3 {[%clk
0:07:07.8]} 18... Nf8 {[%clk 0:07:50.4]} 19. Nf5 {[%clk 0:06:51.6]} 19... Qf6
{[%clk 0:07:29.7]} 20. Rad1 {[%clk 0:06:31.9]} 20... Bxf5 {[%clk 0:07:08.3]} 21.
exf5 {[%clk 0:06:16.5]} 21... e4 {[%clk 0:07:08.1]} 22. Nh2 {[%clk 0:06:17.7]}
22... Qxf5 {[%clk 0:07:04.2]} 23. f3 {[%clk 0:06:19.2]} 23... d5 {[%clk
0:07:01.5]} 24. fxe4 {[%clk 0:06:19.5]} 24... dxe4 {[%clk 0:07:01.6]} 25. Ng4
{[%clk 0:06:17.7]} 25... Qg6 {[%clk 0:07:01.3]} 26. Rf1 {[%clk 0:06:18.4]} 26...
Nh7 {[%clk 0:06:42.9]} 27. Bb3 {[%clk 0:06:14.8]} 27... Re7 {[%clk 0:06:40.5]}
28. Qf2 {[%clk 0:05:22.6]} 28... Rf8 {[%clk 0:06:34]} 29. Qf5 {[%clk 0:05:22.9]}
29... Kg7 {[%clk 0:06:27.9]} 30. Rd2 {[%clk 0:03:40.7]} 30... h5 {[%clk
0:05:58.4]} 31. Nh2 {[%clk 0:03:41.5]} 31... Ne5 {[%clk 0:05:51]} 32. Bd5 {[%clk
0:03:33.4]} 32... Nf3+ {[%clk 0:05:44.3]} 33. Rxf3 {[%clk 0:03:29.4]} 33... exf3
{[%clk 0:05:43.6]} 34. Qxf3 {[%clk 0:03:29.8]} 34... c6 {[%clk 0:05:39.7]} 35.
Bb3 {[%clk 0:03:28.7]} 35... Nf6 {[%clk 0:05:35.9]} 36. Bc2 {[%clk 0:03:27.8]}
36... Ne4 {[%clk 0:05:34.4]} 37. Bxe4 {[%clk 0:01:50.4]} 37... Rxe4 {[%clk
0:05:31.7]} 38. Bxg5 {[%clk 0:01:51.3]} 38... Qxg5 {[%clk 0:05:29.5]} 39. Qxe4
{[%clk 0:01:47.5]} 39... Qxd2 {[%clk 0:05:28.3]} 40. Qe5+ {[%clk 0:01:48.3]}
40... Kg8 {[%clk 0:05:26.3]} 41. Qxh5 {[%clk 0:01:42.1]} 41... Qe3+ {[%clk
0:05:14.9]} 42. Kf1 {[%clk 0:01:37.9]} 42... Re8 {[%clk 0:04:59.8]} 43. Nf3
{[%clk 0:01:28.2]} 43... Bb8 {[%clk 0:04:57.2]} 44. Qg4+ {[%clk 0:01:07]} 44...
Kf8 {[%clk 0:04:56.3]} 45. Qh4 {[%clk 0:01:01.6]} 45... Bf4 {[%clk 0:04:48.6]}
46. Qh8+ {[%clk 0:00:47.5]} 46... Ke7 {[%clk 0:04:47.9]} 47. Qh4+ {[%clk
0:00:49.4]} 47... Kd7 {[%clk 0:04:42.8]} 48. Qg4+ {[%clk 0:00:45.6]} 48... Kc7
{[%clk 0:04:40.1]} 0-1

[Event "GrandPrix_29.05"]
[Site "Chess.com"]
[Date "2020.05.29"]
[Round "5"]
[White "Ave_Mariia"]
[Black "KardashevskiyEvgeny"]
[Result "1-0"]
[WhiteElo "2188"]
[BlackElo "2005"]
[TimeControl "600+2"]
[EndTime "11:28:18 PDT"]
[Termination "Ave_Mariia won on time"]

1. c4 {[%clk 0:10:01.9]} 1... c6 {[%clk 0:09:46.5]} 2. Nf3 {[%clk 0:09:59.5]}
2... Nf6 {[%clk 0:09:45.1]} 3. g3 {[%clk 0:09:59.9]} 3... d5 {[%clk 0:09:45.4]}
4. Bg2 {[%clk 0:09:59.5]} 4... e6 {[%clk 0:09:46.2]} 5. O-O {[%clk 0:09:59.5]}
5... Be7 {[%clk 0:09:46.4]} 6. d4 {[%clk 0:09:59.4]} 6... O-O {[%clk 0:09:46.2]}
7. Qc2 {[%clk 0:10:00.1]} 7... b6 {[%clk 0:09:45.3]} 8. Nbd2 {[%clk 0:09:59.8]}
8... Bb7 {[%clk 0:09:44.8]} 9. e4 {[%clk 0:09:58]} 9... Na6 {[%clk 0:09:45.7]}
10. e5 {[%clk 0:09:55]} 10... Nd7 {[%clk 0:09:44.5]} 11. cxd5 {[%clk 0:09:46.4]}
11... Nb4 {[%clk 0:09:42.5]} 12. Qa4 {[%clk 0:08:52.4]} 12... Nxd5 {[%clk
0:09:26.8]} 13. Ne4 {[%clk 0:08:36.8]} 13... c5 {[%clk 0:09:15.5]} 14. dxc5
{[%clk 0:07:06.3]} 14... Nxc5 {[%clk 0:09:13.7]} 15. Nxc5 {[%clk 0:07:07.3]}
15... Bxc5 {[%clk 0:09:15]} 16. Bg5 {[%clk 0:07:08.4]} 16... Qe8 {[%clk
0:08:58.3]} 17. Qg4 {[%clk 0:06:50.6]} 17... Kh8 {[%clk 0:08:45.3]} 18. Rad1
{[%clk 0:06:31.6]} 18... Qb5 {[%clk 0:08:24.9]} 19. Bc1 {[%clk 0:06:00.5]} 19...
Rac8 {[%clk 0:08:00.2]} 20. Ng5 {[%clk 0:05:52.6]} 20... Be7 {[%clk 0:07:07.5]}
21. Nxf7+ {[%clk 0:05:33.4]} 21... Rxf7 {[%clk 0:06:41.9]} 22. Qxe6 {[%clk
0:05:34.4]} 22... Rcf8 {[%clk 0:04:23.6]} 23. Bxd5 {[%clk 0:05:27.9]} 23... Bxd5
{[%clk 0:04:04.7]} 24. Qxd5 {[%clk 0:05:12.9]} 24... Qxd5 {[%clk 0:04:01.7]} 25.
Rxd5 {[%clk 0:05:13.6]} 25... Bc5 {[%clk 0:03:55.4]} 26. Bf4 {[%clk 0:05:04.8]}
26... g5 {[%clk 0:03:30]} 27. Bxg5 {[%clk 0:05:03.8]} 27... Rxf2 {[%clk
0:03:30.1]} 28. Rxf2 {[%clk 0:04:59.6]} 28... Bxf2+ {[%clk 0:03:30]} 29. Kg2
{[%clk 0:04:57.9]} 29... Bc5 {[%clk 0:03:31.1]} 30. Bf6+ {[%clk 0:04:53.3]}
30... Kg8 {[%clk 0:03:31]} 31. Rd7 {[%clk 0:04:51.5]} 31... Rf7 {[%clk
0:03:30.8]} 32. Rxf7 {[%clk 0:04:08.8]} 32... Kxf7 {[%clk 0:02:55]} 33. Kf3
{[%clk 0:04:09.4]} 33... Ke6 {[%clk 0:01:56.5]} 34. Ke4 {[%clk 0:03:59.8]} 1-0

[Event "GrandPrix_29.05"]
[Site "Chess.com"]
[Date "2020.05.29"]
[Round "5"]
[White "DariaVoit"]
[Black "vagpat"]
[Result "0-1"]
[WhiteElo "2033"]
[BlackElo "2210"]
[TimeControl "600+2"]
[EndTime "11:28:21 PDT"]
[Termination "vagpat won by resignation"]

1. d4 {[%clk 0:09:59.9]} 1... Nf6 {[%clk 0:09:59.9]} 2. Nf3 {[%clk 0:10:00.7]}
2... g6 {[%clk 0:09:52.1]} 3. c4 {[%clk 0:10:00.8]} 3... Bg7 {[%clk 0:09:53.2]}
4. Nc3 {[%clk 0:10:01.4]} 4... O-O {[%clk 0:09:54.2]} 5. Bg5 {[%clk 0:10:01.9]}
5... d6 {[%clk 0:09:53.9]} 6. h3 {[%clk 0:09:58.2]} 6... Nbd7 {[%clk 0:09:53.2]}
7. e3 {[%clk 0:09:59]} 7... b6 {[%clk 0:09:53.8]} 8. Bd3 {[%clk 0:09:49]} 8...
Bb7 {[%clk 0:09:54.8]} 9. O-O {[%clk 0:09:47.3]} 9... e5 {[%clk 0:09:53]} 10. d5
{[%clk 0:09:34.7]} 10... h6 {[%clk 0:09:21.3]} 11. Bxf6 {[%clk 0:09:25.1]} 11...
Nxf6 {[%clk 0:09:14.4]} 12. Nd2 {[%clk 0:09:22.8]} 12... Nd7 {[%clk 0:09:07.3]}
13. Qc2 {[%clk 0:09:09.4]} 13... a5 {[%clk 0:08:55.8]} 14. a3 {[%clk 0:09:07.1]}
14... f5 {[%clk 0:08:44.1]} 15. e4 {[%clk 0:09:06.9]} 15... Nc5 {[%clk 0:08:28]}
16. b4 {[%clk 0:09:05.8]} 16... Nxd3 {[%clk 0:08:11.1]} 17. Qxd3 {[%clk
0:09:06.2]} 17... f4 {[%clk 0:08:13]} 18. c5 {[%clk 0:09:04.4]} 18... bxc5
{[%clk 0:07:05.2]} 19. bxc5 {[%clk 0:09:03.9]} 19... Ba6 {[%clk 0:07:06.5]} 20.
Nc4 {[%clk 0:09:03.6]} 20... f3 {[%clk 0:06:52.7]} 21. g3 {[%clk 0:08:55.4]}
21... Qg5 {[%clk 0:06:21]} 22. Kh2 {[%clk 0:08:27.6]} 22... Bc8 {[%clk 0:06:20]}
23. Rh1 {[%clk 0:08:12.5]} 23... Bxh3 {[%clk 0:06:19.2]} 24. Kg1 {[%clk
0:08:11.2]} 24... Bg2 {[%clk 0:05:41.4]} 25. Rh2 {[%clk 0:08:00.6]} 25... Rab8
{[%clk 0:05:23.4]} 26. Ne3 {[%clk 0:07:57.6]} 26... dxc5 {[%clk 0:04:51]} 27.
Qc4 {[%clk 0:07:31.7]} 27... Rb2 {[%clk 0:04:36.8]} 28. Qxc5 {[%clk 0:07:01.7]}
28... h5 {[%clk 0:04:01.2]} 29. Rd1 {[%clk 0:04:59]} 29... Bh6 {[%clk
0:03:42.4]} 30. Nxg2 {[%clk 0:04:44.4]} 30... fxg2 {[%clk 0:03:36.6]} 31. Rxg2
{[%clk 0:04:46.3]} 31... Rc2 {[%clk 0:03:03.7]} 32. a4 {[%clk 0:04:14.4]} 32...
Qg4 {[%clk 0:02:40.8]} 33. Rd3 {[%clk 0:04:01.6]} 33... h4 {[%clk 0:02:06]} 34.
f4 {[%clk 0:02:34]} 34... Rc1+ {[%clk 0:01:32.6]} 35. Kh2 {[%clk 0:02:32.2]}
35... hxg3+ {[%clk 0:01:29.9]} 36. Rdxg3 {[%clk 0:02:26.8]} 36... Qh4+ {[%clk
0:01:28.2]} 0-1

[Event "GrandPrix_29.05"]
[Site "Chess.com"]
[Date "2020.05.29"]
[Round "5"]
[White "Sam_ChessMood"]
[Black "VSERGUEI"]
[Result "1-0"]
[WhiteElo "2520"]
[BlackElo "2453"]
[TimeControl "600+2"]
[EndTime "11:28:22 PDT"]
[Termination "Sam_ChessMood won by resignation"]

1. e4 {[%clk 0:10:01.9]} 1... e6 {[%clk 0:10:00.2]} 2. d4 {[%clk 0:10:03]} 2...
d5 {[%clk 0:10:01.1]} 3. Nc3 {[%clk 0:10:04.2]} 3... Nf6 {[%clk 0:10:01.6]} 4.
e5 {[%clk 0:10:04.6]} 4... Nfd7 {[%clk 0:10:02.4]} 5. f4 {[%clk 0:10:05.8]} 5...
c5 {[%clk 0:10:03.4]} 6. Nf3 {[%clk 0:10:06.7]} 6... Nc6 {[%clk 0:10:04.4]} 7.
Be3 {[%clk 0:10:07.5]} 7... Be7 {[%clk 0:10:04.3]} 8. Qd2 {[%clk 0:10:07.9]}
8... O-O {[%clk 0:10:04.3]} 9. dxc5 {[%clk 0:10:08.3]} 9... Qa5 {[%clk
0:09:47.7]} 10. O-O-O {[%clk 0:09:44.2]} 10... b6 {[%clk 0:09:47.2]} 11. Bb5
{[%clk 0:09:27.7]} 11... Nb4 {[%clk 0:09:46.1]} 12. a3 {[%clk 0:09:27]} 12...
bxc5 {[%clk 0:09:32.6]} 13. Kb1 {[%clk 0:09:26.8]} 13... Rb8 {[%clk 0:09:16.6]}
14. axb4 {[%clk 0:08:02.6]} 14... cxb4 {[%clk 0:09:11.7]} 15. Nxd5 {[%clk
0:08:02]} 15... exd5 {[%clk 0:09:06.4]} 16. Bxd7 {[%clk 0:08:01.2]} 16... Bxd7
{[%clk 0:09:06]} 17. Qxd5 {[%clk 0:08:02.3]} 17... Qxd5 {[%clk 0:09:04.7]} 18.
Rxd5 {[%clk 0:08:04.2]} 18... Bf5 {[%clk 0:09:03.3]} 19. Nd4 {[%clk 0:07:48.3]}
19... Be4 {[%clk 0:08:51.8]} 20. Nc6 {[%clk 0:07:49]} 20... Bh4 {[%clk 0:08:12]}
21. Nxb8 {[%clk 0:06:19.4]} 21... Bxd5 {[%clk 0:07:57.7]} 22. Rd1 {[%clk
0:06:15.9]} 22... Bxg2 {[%clk 0:07:18.4]} 23. Na6 {[%clk 0:05:15.2]} 23... b3
{[%clk 0:07:01.9]} 24. cxb3 {[%clk 0:05:13.5]} 24... Be4+ {[%clk 0:07:00.1]} 25.
Ka2 {[%clk 0:05:12.2]} 25... h6 {[%clk 0:06:49.3]} 26. b4 {[%clk 0:04:46.6]}
26... f6 {[%clk 0:06:14.8]} 27. e6 {[%clk 0:03:40.9]} 27... f5 {[%clk
0:06:02.5]} 28. Bc5 {[%clk 0:02:51.8]} 28... Rc8 {[%clk 0:05:38]} 29. b5 {[%clk
0:02:22.2]} 29... Bb7 {[%clk 0:05:28.1]} 30. b4 {[%clk 0:02:17.3]} 30... Bxa6
{[%clk 0:05:16]} 31. bxa6 {[%clk 0:02:18.1]} 31... Rc6 {[%clk 0:04:57.5]} 32.
Rd6 {[%clk 0:01:50.4]} 32... Rxd6 {[%clk 0:04:57.6]} 33. Bxd6 {[%clk 0:01:52.3]}
33... g5 {[%clk 0:04:58.4]} 34. Be7 {[%clk 0:01:25.6]} 34... Bf2 {[%clk
0:04:18]} 35. fxg5 {[%clk 0:01:24.9]} 35... f4 {[%clk 0:04:18.4]} 36. gxh6
{[%clk 0:01:13.4]} 36... f3 {[%clk 0:04:19.2]} 37. Kb3 {[%clk 0:00:28.7]} 37...
Be3 {[%clk 0:03:57.7]} 38. Bh4 {[%clk 0:00:28.5]} 38... f2 {[%clk 0:03:55.5]}
39. Bxf2 {[%clk 0:00:22.3]} 39... Bxf2 {[%clk 0:03:56]} 40. h7+ {[%clk
0:00:22.3]} 1-0